Cogmind - Beta 15 @@@ ROGUE MODE // 2025.08.23 @ 07:43:06 Player: beans Result: Destroyed by S-10 Pest with Light Assault Rifle Performance ------------- Evolutions (0) 0 Regions Visited (2) 400 Robots Destroyed (14) 70 Value Destroyed (328) 328 Prototype IDs (0) 0 Alien Tech Used (0) 0 Bonus (0) 0 TOTAL SCORE: 798 Bonus ------- None Cogmind --------- Core Integrity 0/250 Matter 342/400 Energy 99/100 System Corruption 0% Temperature Cool (0) Movement Core (50) Location -10/Mines Parts ------- > --- POWER (1) -------- (None) > --- PROPULSION (2) --- (None) > --- UTILITY (2) ------ Medium Matter Pod Visual Processing Unit > --- WEAPON (2) ------- Light Assault Rifle > --- INVENTORY (5) ---- (None) Peak State ------------ > --- POWER ------------ Ion Engine > --- PROPULSION ------- Light Treads Light Treads > --- UTILITY ---------- Medium Matter Pod Visual Processing Unit > --- WEAPON ----------- Assault Rifle Assault Rifle > --- INVENTORY -------- (None) [Rating: 8] Favorites ----------- Power Ion Engine Engine Ion Engine Propulsion Light Treads Treads Light Treads Utility Visual Processing Unit Storage Medium Matter Pod Processor Visual Processing Unit Weapon Assault Rifle Energy Gun EM Pulse Gun Ballistic Gun Assault Rifle Build | -11 -10 -10 ------- Run | Yrd Mat Min Slots Evolved . | . . . Power . | . . . Propulsion . | . . . Utility . | . . . Weapon . | . . . Parts Attached 11 | 6 5 . Power 2 | 1 1 . Engine 2 | 1 1 . Core . | . . . Reactor . | . . . Propulsion 2 | 2 . . Treads 2 | 2 . . Leg . | . . . Wheel . | . . . Hover . | . . . Flight . | . . . Utility 2 | . 2 . Device . | . . . Storage 1 | . 1 . Processor 1 | . 1 . Hackware . | . . . Protection . | . . . Artifact . | . . . Weapon 5 | 3 2 . Energy Gun 2 | 2 . . Energy Cannon . | . . . Ballistic Gun 3 | 1 2 . Ballistic Cannon . | . . . Launcher . | . . . Special Weapon . | . . . Impact Weapon . | . . . Slashing Weapon . | . . . Piercing Weapon . | . . . Special Melee Weapon . | . . . Unidentified Prototypes . | . . . Parts Lost 6 | . 6 . Power 2 | . 2 . Propulsion 2 | . 2 . Utility . | . . . Weapon 2 | . 2 . Highest Loss Streak 5 | . 5 . To Critical Strikes . | . . . Average Backups . | . . . Power . | . . . Propulsion . | . . . Utility . | . . . Weapon . | . . . Tool/Special . | . . . Unused Backups 1 | . 1 . Power . | . . . Propulsion . | . . . Utility . | . . . Weapon 1 | . 1 . Tool/Special . | . . . Average Slot Usage (%) 65 | . 69 42 Engine 9 | . 10 . Treads 21 | . 25 . Storage 5 | . 3 14 Processor 7 | . 6 14 Ballistic Gun 21 | . 22 14 Peak Build Rating 8 | 4 8 4 Average Rating 4 | 2 5 4 On Entrance 2 | . 4 4 Naked Turns . | . . . Heaviest Build 11 | 6 11 3 Greatest Support 40 | 40 40 3 Greatest Overweight (x) 1 | 1 . . Average Overweight (x) . | . . . Largest Inventory Capacity 5 | 5 5 5 Average Capacity 5 | 5 5 5 Most Carried 2 | 2 2 . Average Carried . | . . . Final Capacity 5 | 5 5 5 Final Carried . | . . . Class Distribution -------------------- 100% | Mutant Dominant Class ---------------- Mutant | -10/Materials Mutant | -10/Mines Resources | -11 -10 -10 ----------- Run | Yrd Mat Min Matter Collected 622 | 252 370 . Remotely . | . . . Salvage Created 632 | . 632 . Parts 26 | . 26 . Haulers Intercepted 2 | . 2 . Recyclers Shooed 1 | . 1 . Parts Field Recycled . | . . . Retrieved Matter . | . . . Parts Self-Destructed . | . . . Prevented . | . . . Kills | -11 -10 -10 ------- Run | Yrd Mat Min Combat Hostiles Destroyed 7 | . 7 . Guns 7 | . 7 . Classes Destroyed 5 | . 5 . Hauler 2 | . 2 . Recycler 2 | . 2 . Operator 1 | . 1 . Watcher 2 | . 2 . Grunt 7 | . 7 . Best Kill Streak 7 | . 7 . Combat Bots Only 3 | . 3 . Max Kills in Single Turn 1 | . 1 . Gunslinging . | . . . Exploded . | . . . Melee . | . . . Uniques/NPCs Destroyed . | . . . Combat | -11 -10 -10 -------- Run | Yrd Mat Min Hostile Shots Fired 87 | . 84 3 Missed 22 | . 21 1 Hits 65 | . 63 2 Projectile 65 | . 63 2 AOE 1 | . 1 . Critical Strikes 2 | . 2 . Damage Taken 942 | . 924 18 Core 256 | . 238 18 Absorbed by Shields . | . . . Core Remaining (%) 100 | 100 . . Volleys Fired 77 | . 76 1 Largest 2 | . 2 1 Hottest 40 | . 40 20 Shots Fired 124 | . 123 1 Gun 124 | . 123 1 Cannon . | . . . Launcher . | . . . Special . | . . . Kinetic 124 | . 123 1 Thermal . | . . . Explosive . | . . . Electromagnetic . | . . . Robot Hit Streak 7 | . 7 . Robot Miss Streak 3 | . 3 1 Penetration Max . | . . . Secondary Targets 3 | . 3 . Max Gunslinging Chain 1 | . 1 . Shots Hit Robots 77 | . 77 . Core Hits 31 | . 31 . Critical Kills . | . . . Critical Parts Destroyed . | . . . Critical Strikes . | . . . Melee Attacks . | . . . Impact . | . . . Slashing . | . . . Piercing . | . . . Sneak Attacks . | . . . Combat Hostiles . | . . . Follow-up Attacks . | . . . Damage Inflicted 882 | . 882 . Guns 882 | . 882 . Cannons . | . . . Explosions . | . . . Melee . | . . . Ramming . | . . . Kinetic 882 | . 882 . Thermal . | . . . Explosive . | . . . Electromagnetic . | . . . Impact . | . . . Slashing . | . . . Piercing . | . . . Highest Corruption . | . . . Average Corruption . | . . . Corruption Purged . | . . . Corruption Blocked . | . . . Overload Shots . | . . . Overflow Damage . | . . . Projectiles . | . . . Explosions . | . . . Melee . | . . . Knockbacks . | . . . Impact . | . . . Kinetic . | . . . Secondary . | . . . Self-Inflicted Damage . | . . . Shots . | . . . Rammed . | . . . Targets Rammed . | . . . Kicked . | . . . Crushed . | . . . Highest Temperature 28 | . 28 . Average Temperature 8 | . 8 . Received Heat Transfer 468 | . 468 . Siege Activations . | . . . Martial Activations . | . . . Shielding Activations . | . . . Robots Disrupted . | . . . Combat Hostiles . | . . . Robots Corrupted . | . . . Combat Hostiles . | . . . Parts Fried . | . . . Impact Corruptions . | . . . Robots Melted . | . . . Combat Hostiles . | . . . Parts Melted . | . . . Heat Transferred . | . . . Parts Sabotaged . | . . . Parts Stolen . | . . . Parts Stripped . | . . . Power Chain Reactions . | . . . Alert | -11 -10 -10 ------- Run | Yrd Mat Min Maximum Alert Level . | . . . Low Security (%) 100 | 100 100 100 Level 1 . | . . . Level 2 . | . . . Level 3 . | . . . Level 4 . | . . . Level 5 . | . . . High Security . | . . . Max Security . | . . . Peak Influence 54 | . 54 30 Initial 7 | . . 7 Average 14 | . 16 10 Influence Increases 234 | . 204 30 Destroy 0b10 Robot/C 140 | . 140 . Destroy 0b10 Robot/NC 35 | . 35 . Destroy Leader 28 | . 28 . Destroy Structure 1 | . 1 . Lose Combat Pursuer 30 | . . 30 Influence Decreases 214 | . 184 30 Entered New Map 13 | . . 13 Time Decay 176 | . 159 17 Lost Part 25 | . 25 . Squads Dispatched . | . . . Investigation . | . . . Extermination . | . . . Reinforcement . | . . . Assault . | . . . Garrison . | . . . Intercept . | . . . Searches Triggered . | . . . Construction Impeded . | . . . Haulers Reinforced . | . . . Active Scanning Responses . | . . . Cargo Convoy Interrupts . | . . . Stealth | -11 -10 -10 --------- Run | Yrd Mat Min Distress Signals 2 | . 2 . Communications Jammed . | . . . Distress Signals . | . . . Times Spotted 25 | . 20 5 Peak Tracking Total 5 | . 5 3 Tactical Retreats 1 | . . 1 Traps | -11 -10 -10 ------- Run | Yrd Mat Min Traps Triggered . | . . . Indirectly . | . . . Trap Hack Attempts . | . . . Triggered . | . . . Disarmed . | . . . Reprogrammed . | . . . Reused . | . . . Traps Extracted . | . . . Installed . | . . . Triggered . | . . . Machines | -11 -10 -10 ---------- Run | Yrd Mat Min Machines Disabled . | . . . Max in Single Turn . | . . . Machines Repaired . | . . . Machines Dismantled . | . . . Machines Sabotaged . | . . . Overloaded Fab Kills . | . . . Hacking | -11 -10 -10 --------- Run | Yrd Mat Min Machines Accessed . | . . . Terminals . | . . . Fabricators . | . . . Repair Stations . | . . . Recycling Units . | . . . Scanalyzers . | . . . Garrison Access . | . . . Total Hacks . | . . . Successful . | . . . Failed . | . . . Catastrophic . | . . . Database Lockouts . | . . . Manual . | . . . Terminals . | . . . Fabricators . | . . . Repair Stations . | . . . Recycling Units . | . . . Scanalyzers . | . . . Garrison Access . | . . . Terminal Hacks . | . . . Fabricator Hacks . | . . . Repair Station Hacks . | . . . Recycling Unit Hacks . | . . . Scanalyzer . | . . . Garrison Access Hacks . | . . . Unauthorized Hacks . | . . . Terminals . | . . . Fabricators . | . . . Repair Stations . | . . . Recycling Units . | . . . Scanalyzers . | . . . Garrison Access . | . . . Data Cores Recovered 1 | . 1 . Used . | . . . Hacking Detections . | . . . Full Trace Events . | . . . Feedback Events . | . . . Feedback Blocked . | . . . Robot Schematics Acquired . | . . . Robots Built . | . . . Authchips . | . . . Time . | . . . Total Robot Build Rating . | . . . Part Schematics Acquired . | . . . Parts Built . | . . . Authchips . | . . . Time . | . . . Total Part Build Rating . | . . . Parts Repaired . | . . . Time . | . . . Parts Recycled . | . . . Recycled Matter . | . . . Retrieved Matter . | . . . Retrieved Components . | . . . Parts Scanalyzed . | . . . Part Schematics Acquired . | . . . Parts Damaged . | . . . Bothacking | -11 -10 -10 ------------ Run | Yrd Mat Min Used RIF Installer . | . . . Robots Hacked . | . . . Non-combat . | . . . Combat . | . . . Robot Hacks Applied . | . . . Relay Couplers Released . | . . . Fabnet Peak Effective % . | . . . Robots Rewired . | . . . Allies Hacked . | . . . Hacks Repelled . | . . . Allies | -11 -10 -10 -------- Run | Yrd Mat Min Total Allies . | . . . Largest Group . | . . . Highest-Rated Group . | . . . Highest-Rated Ally . | . . . Total Orders . | . . . Ally Attacks . | . . . Total Damage . | . . . Kills . | . . . Allies Corrupted . | . . . Allies Melted . | . . . Intel | -11 -10 -10 ------- Run | Yrd Mat Min Active Infowar (turns) 288 | . 219 69 Optics 288 | . 219 69 Robot Analysis Total . | . . . Derelict Logs Recovered 1 | . . 1 Drone Launches . | . . . Drone Recoveries . | . . . Exploration | -11 -10 -10 ------------- Run | Yrd Mat Min Turns Passed 603 | 56 478 69 Spaces Moved 350 | 38 176 136 Core 172 | 19 17 136 Treads 178 | 19 159 . Legs . | . . . Wheels . | . . . Hover . | . . . Flight . | . . . Fastest Speed 50 | 50 50 50 Average Speed 107 | 115 149 50 Slowest Speed 160 | 160 160 50 Overloaded Moves . | . . . Propulsion Burnouts . | . . . Robots Hopped . | . . . Potential Cave-ins . | . . . Cave-ins Triggered . | . . . Exploration Rate (%) 29 | 3 42 42 Regions Visited 2 Branch Regions 1 Pre-discovered Areas . | . . . Known Exits Taken . | . . . Unknown Exits Taken 2 | 1 1 . Scrap Searched . | . . . Spaces Dug . | . . . Terrain Destroyed . | . . . Melee . | . . . Projectile . | . . . AOE . | . . . Terrain Rammed . | . . . Walls Destroyed . | . . . Machines Disabled . | . . . Actions | -11 -10 -10 --------- Run | Yrd Mat Min Total 464 | 51 276 137 Wait 10 | . 10 . Move 348 | 37 175 136 Hop . | . . . Pick Up 13 | 6 7 . Fast Attach . | . . . Attach 11 | 6 5 . Detach . | . . . Swap 1 | . 1 . Drop 4 | 2 2 . Fire 77 | . 76 1 Melee . | . . . Ram . | . . . Kick . | . . . Crush . | . . . Escape Stasis . | . . . Rewire . | . . . Trap . | . . . Miscellaneous . | . . . Route ------- -11/Scrapyard -10/Materials -10/Mines History --------- Turn | Location | Event 14 | -11/Scrapyard | Discovered new exit (range 16) 57 | -11/Scrapyard | Entered Materials 314 | -10/Materials | Build established: Mutant 383 | -10/Materials | Discovered new exit (range 7) 464 | -10/Materials | Core integrity fell below 50% 513 | -10/Materials | Core integrity fell below 20% 528 | -10/Materials | Lost 5 parts (1p2n2w) 535 | -10/Materials | Entered Mines 553 | -10/Mines | Learned Materials stockpile data 604 | -10/Mines | Destroyed by S-10 Pest with Light Assault Rifle Last Messages --------------- Lgt. Treads destroyed. Acquired Lgt. Assault Rifle. K-01 Serf cleans the Nuclear Reactor. R-06 Scavenger collects Aluminum Leg. G-34 Mercenary destroyed. R-06 Scavenger collects Sml. Laser. Acquired 14 matter. K-01 Serf collects debris. Acquired 42 matter. R-06 Scavenger collects Aluminum Leg. LOCATION=UNKNOWN GOAL=ESCAPE T-07 Excavator is excavating. A derelict is hurriedly installing traps. ZY-004(g): "Hehe, this'll put a wrench in their mining defense operations..." ZY-004(g) slips into the shadows. Acquired derelict log, extracted data. Data stored: Materials stockpile data. T-07 Excavator is excavating. Map ----- +----------------------------------------------------+ | ?????????????????????????????????????????????????? | | ?????????????????????????????????????????????????? | | ?????????????????????????????????????????????????? | | ?????????????????????????????????????????????????? | | ?????????????????????????????????????????????????? | | ?????????????????????????????????????????????????? | | ?????????????????????????????????????????????????? | | ?????????????????????????????????????????????????? | | ?????????????????????????????????????????????????? | | ?????????????????????????????????????????????????? | | ??????????????????? ????????????????????????????? | | ???????????????????# ????????????????????????????? | | ???????????????????# ????????????????????????????? | | ???????????????????# ???????????????????????????? | | ???????????????????# ???????????????????????????? | | ???????????????????#ss##?????????????????????????? | | ???????????????????# k #????????????????????????? | | ???????????????????#t s ##??????????????????????? | | ???????????????????? ####???????????????????? | | ????????????????????? ##??????????????????? | | ????????????????????? #??????????????????? | | ?????????????????????? #??????????????????? | | ####??????????????????? #??????????????????? | | ^ #???????????????????# #???????????????????? | | # #???????????????????# #????????????????????? | | #????????????????????#@ #?????????????????????? | | ^#^#????????????????????# #?????????????????????? | | # ##???????????????????# #?????????????????????? | | ##??????????????????# ###### #??????????????? | | #??????????????????# #??????????????? | | # ##?????????????????# #??????????????? | | # #?????????###?????# ####### #??????????????? | | ## #???????## ####### #??????????????????????? | | ?## ##??????## u#??????????????????????? | | ??# #??????## ######u#??????????????????????? | | ### ###???## #?????# #??????????????????????? | | # ##?## #??????# #?????####?????????????? | | ### #???????# #????## ##????????????? | | ##??????# #???## #????????????? | | # ######## ##### #????????????? | | ## #????????????? | | ?### ####### #### #####????????? | | ???## ##?????# #??## #????????? | | ????## ##??????# #??## ##???????? | | ?????#### #???????# #??# """ #???????? | | ????????## ##???????# #### """ ##??????? | | ?????????#######????????# """ ##?????? | | ????????????????????????###### ##????? | | ?????????????????????????????## #????? | | ??????????????????????????????#### ##???? | +----------------------------------------------------+ Best States ------------- Heat Dissipation 25 Energy Generation 10 Energy Capacity 250 Matter Stores 359 Matter Capacity 400 Sight Range 18 Terrain Scan Density 10 Evasion (%) 50 Recoil Reduction 2 Item Schematics ----------------- None Robot Schematics ------------------ None Fabricated ------------ Nothing Repaired ---------- Nothing Alien Tech Used ----------------- None Achievements -------------- None Challenges ------------ None Game ------ Seed CobblerPitchforkPower Manual? 0 Play Time 00:05:11 Cumulative 100.4 hours Start 2025.08.23 @ 07:38:30 End 2025.08.23 @ 07:43:06 Sessions 1 Manual Loads 0 Difficulty Rogue Special Mode None Game No. 384 Rogue 384 Adventurer 0 Explorer 0 Win Type - Total 0 Types 0/0/0/0/0/0/0/0/0/0 Lore% 43 Gallery% 41 Achievement% 31 Wizard Run 0 Options --------- Layout 2 ASCII 0 Keyboard 0 Movement Mouse Keybinds 0 Fullscreen 2 Font 24/Smallcaps Map View 50x44 Zoom Use 0% Tactical HUD 0 Map Filters NONE Filters NONE Steam 1 RUN: e07ca19d-c081-4626-bd29-167c8f5c13d8